bitfinex/quotes_SOLUSD_20241111
["timestamp","ask_amount","ask_price","bid_price","bid_amount"]
[1731298269182,37.394874,209.01,208.93,13.61799]
[1731298269386,13.61799,209.0,208.93,13.61799]
[1731298269685,23.776884,208.99,208.93,13.61799]
[1731298270194,23.776884,209.0,208.93,13.61799]
[1731298273612,23.776884,208.97,208.9,13.61799]
[1731298274174,23.776884,208.97,208.91,13.61799]
[1731298274371,23.776884,208.97,208.9,13.61799]
[1731298274575,23.776884,208.97,208.91,13.61799]
[1731298274775,23.776884,208.98,208.91,13.61799]
[1731298276401,13.61799,208.98,208.91,13.61799]
[1731298276784,23.776884,208.97,208.91,13.61799]
[1731298277884,23.776884,208.97,208.86,0.1]
[1731298278082,23.776884,208.97,208.91,13.61799]
[1731298278298,37.394874,208.99,208.91,13.61799]
[1731298278495,23.776884,208.97,208.9,13.61799]
[1731298278697,37.394874,208.97,208.9,13.61799]
[1731298278878,23.776884,208.97,208.9,13.61799]
[1731298279288,13.61799,208.99,208.91,13.61799]
[1731298279488,6.5521,209.03,208.92,13.61799]
[1731298279701,6.5521,209.03,208.97,13.61799]
[1731298279870,15.4065,209.04,208.99,13.61799]
[1731298280077,13.61799,209.07,208.99,13.61799]
[1731298280276,19.83729,209.08,209.01,13.61799]
[1731298280488,24.62019,209.08,208.99,13.61799]
[1731298280676,13.61799,209.07,209.0,13.61799]
[1731298280876,6.2193,209.08,209.01,13.61799]
[1731298281095,19.83729,209.08,209.0,13.61799]
[1731298281483,23.776884,209.07,209.0,13.61799]
[1731298281791,37.394874,209.07,208.99,13.61799]
[1731298281982,23.776884,209.05,208.98,13.61799]
[1731298282185,23.776884,209.05,208.99,13.61799]
[1731298282382,23.776884,209.05,208.93,7.89146204]
[1731298282383,23.776884,209.07,209.0,13.61799]
[1731298282588,37.394874,209.07,209.0,13.61799]
[1731298283098,37.394874,209.07,208.99,13.61799]
[1731298283992,23.776884,209.07,209.0,13.61799]
[1731298284201,37.394874,209.07,208.99,13.61799]
[1731298284590,37.394874,209.07,209.0,13.61799]
[1731298284778,23.776884,209.07,209.01,13.61799]
[1731298284976,19.83729,209.08,209.01,13.61799]
[1731298284977,6.2193,209.08,209.01,13.61799]
[1731298285175,19.83729,209.08,209.01,13.61799]
[1731298285480,13.61799,209.08,209.01,13.61799]
[1731298285889,13.61799,209.12,209.05,13.61799]
[1731298286083,16.2675,209.14,209.08,13.61799]
[1731298286900,16.2675,209.14,209.09,13.61799]
[1731298287201,6.4705,209.18,209.05,13.61799]
[1731298287202,13.61799,209.12,209.05,13.61799]
[1731298287379,13.61799,209.1,209.02,13.61799]
[1731298287581,13.61799,209.07,208.99,13.61799]
[1731298287792,13.61799,209.06,208.99,13.61799]
[1731298288283,23.776884,209.05,208.99,13.61799]
[1731298288697,23.776884,209.06,208.99,13.61799]
[1731298288909,13.61799,209.05,208.98,13.61799]
[1731298289108,37.394874,209.04,208.96,13.61799]
[1731298290403,23.776884,209.04,208.98,13.61799]
[1731298291399,6.4705,209.09,209.01,13.61799]
[1731298291591,20.08849,209.09,209.02,13.61799]
[1731298291792,13.61799,209.07,209.0,13.61799]
[1731298292282,13.61799,209.08,209.01,13.61799]
[1731298292482,13.61799,209.08,209.0,13.61799]
[1731298292685,23.776884,209.07,209.0,13.61799]
[1731298293511,13.61799,209.07,209.0,13.61799]
[1731298293807,23.776884,209.06,209.0,13.61799]
[1731298293991,37.394874,209.06,208.98,33.61799]
[1731298294696,37.394874,209.06,208.92,16.1164]
[1731298294697,37.394874,209.06,208.99,13.61799]
[1731298294894,23.776884,209.06,209.0,13.61799]
[1731298295295,13.61799,209.07,209.01,13.61799]
[1731298295296,23.776884,209.07,209.01,13.61799]
[1731298296417,37.394874,209.07,208.99,13.61799]
[1731298296589,37.394874,209.07,209.0,13.61799]
[1731298296991,13.61799,209.06,208.99,13.61799]
[1731298297203,23.776884,209.05,209.0,13.61799]
[1731298297792,23.776884,209.06,209.0,13.61799]
[1731298298495,37.394874,209.08,209.0,13.61799]
[1731298300415,37.394874,209.08,209.01,13.61799]
[1731298300615,23.776884,209.08,208.98,20.0]
[1731298300913,23.776884,209.08,209.02,13.61799]
[1731298301405,37.394874,209.1,209.02,13.61799]
[1731298301606,13.61799,209.07,208.98,20.0]
[1731298301811,13.61799,209.08,209.01,13.61799]
[1731298302113,23.776884,209.07,209.03,13.61799]
[1731298302414,23.776884,209.09,209.03,13.61799]
[1731298302811,37.394874,209.09,209.02,13.61799]
[1731298304615,23.776884,209.09,209.03,13.61799]
[1731298305999,37.394874,209.09,209.02,13.61799]
[1731298307017,37.394874,209.09,209.01,13.61799]
[1731298307018,13.61799,209.08,209.01,13.61799]
[1731298307193,23.776884,209.07,209.01,13.61799]
[1731298308119,16.2675,209.29,209.16,46.606684]
[1731298308299,16.2675,209.29,209.27,13.61799]
[1731298308493,13.61799,209.4,209.28,8.21603374]
[1731298308698,19.87389,209.42,209.34,13.61799]
[1731298308902,19.87389,209.42,209.28,8.21603374]
[1731298308903,13.61799,209.4,209.32,13.61799]
[1731298309210,6.2559,209.42,209.28,8.21603374]
[1731298309211,13.61799,209.36,209.28,21.83402374]
[1731298309410,13.61799,209.36,209.28,13.61799]
[1731298309718,13.61799,209.34,209.26,13.61799]
[1731298310104,13.61799,209.39,209.3,13.61799]
[1731298310317,13.61799,209.41,209.33,13.61799]
[1731298310695,13.61799,209.39,209.31,13.61799]
[1731298311312,13.61799,209.39,209.3,8.21603374]
[1731298311313,13.61799,209.37,209.3,21.83402374]
[1731298312007,0.1,209.43,209.3,21.83402374]
[1731298312008,13.61799,209.38,209.31,13.61799]
[1731298312212,13.61799,209.37,209.3,8.21603374]
[1731298312512,13.61799,209.36,209.29,13.61799]
[1731298312716,13.61799,209.35,209.28,13.61799]
[1731298312924,13.61799,209.33,209.25,13.61799]
[1731298314016,13.61799,209.35,209.27,13.61799]
[1731298314214,13.61799,209.35,209.28,13.61799]
[1731298314622,13.61799,209.34,209.27,21.83402374]
[1731298314925,13.61799,209.36,209.29,13.61799]
[1731298316898,13.61799,209.37,209.3,13.61799]
[1731298317102,13.61799,209.38,209.31,13.61799]
[1731298317507,13.61799,209.37,209.3,13.61799]
[1731298317722,13.61799,209.37,209.29,21.83402374]
[1731298317903,28.552684,209.39,209.29,21.83402374]
[1731298317904,13.61799,209.36,209.29,21.83402374]
[1731298318102,28.552684,209.39,209.29,21.83402374]
[1731298318103,13.61799,209.37,209.3,13.61799]
[1731298318717,13.61799,209.39,209.32,13.61799]
[1731298319330,13.61799,209.38,209.31,13.61799]
[1731298320319,13.61799,209.39,209.32,13.61799]
[1731298321721,13.61799,209.38,209.31,13.61799]
[1731298322329,13.61799,209.37,209.3,21.83402374]
[1731298323016,13.61799,209.38,209.31,13.61799]
[1731298323418,13.61799,209.39,209.32,13.61799]
[1731298323732,13.61799,209.38,209.31,13.61799]
[1731298324138,13.61799,209.4,209.33,13.61799]
[1731298324624,13.61799,209.4,209.28,16.0533]
[1731298324625,13.61799,209.43,209.36,13.61799]
[1731298325012,13.61799,209.43,209.34,8.21603374]
[1731298325013,13.61799,209.44,209.37,13.61799]
[1731298326316,13.61799,209.4,209.34,8.21603374]
[1731298326812,13.61799,209.42,209.34,21.83402374]
[1731298328125,13.61799,209.39,209.34,8.21603374]
[1731298328328,13.61799,209.41,209.33,13.61799]
[1731298328510,13.61799,209.41,209.33,21.83402374]
[1731298329134,13.61799,209.41,209.34,13.61799]
[1731298329312,4.7744,209.45,209.36,13.61799]
[1731298329313,23.776884,209.44,209.36,13.61799]
[1731298329514,13.61799,209.43,209.36,13.61799]
[1731298329730,13.61799,209.43,209.36,21.83402374]
[1731298330238,43.776884,209.42,209.28,16.0533]
[1731298330530,0.1,209.41,209.24,13.61799]
[1731298330735,13.61799,209.32,209.24,13.61799]
[1731298330914,13.61799,209.33,209.25,13.61799]
[1731298331830,13.61799,209.33,209.26,13.61799]
[1731298332023,4.7765,209.36,209.26,13.61799]
[1731298332340,13.61799,209.33,209.25,13.61799]
[1731298333631,13.61799,209.29,209.23,22.0434]
[1731298334214,13.61799,209.3,209.23,35.66139]
[1731298334732,13.61799,209.31,209.23,35.66139]
[1731298334912,13.61799,209.32,209.24,13.61799]
[1731298335117,13.61799,209.32,209.25,13.61799]
[1731298335533,13.61799,209.32,209.23,22.0434]
[1731298335534,13.61799,209.33,209.26,13.61799]
[1731298336213,13.61799,209.33,209.25,13.61799]
[1731298336620,13.61799,209.34,209.27,13.61799]
[1731298336820,13.61799,209.35,209.28,13.61799]
[1731298337040,13.61799,209.34,209.27,13.61799]
[1731298337634,13.61799,209.34,209.23,22.0434]
[1731298337635,13.61799,209.34,209.26,13.61799]
[1731298337933,13.61799,209.33,209.25,13.61799]
[1731298338129,13.61799,209.33,209.23,22.0434]
[1731298338130,13.61799,209.33,209.26,13.61799]
[1731298339117,13.61799,209.33,209.25,13.61799]
[1731298340027,13.61799,209.31,209.24,13.61799]
[1731298340325,13.61799,209.32,209.24,13.61799]
[1731298341734,18.39539,209.32,209.24,13.61799]
[1731298341936,13.61799,209.31,209.23,35.66139]
[1731298342239,13.61799,209.3,209.23,35.66139]
[1731298342837,13.61799,209.28,209.23,15.6582]
[1731298343028,13.61799,209.28,209.2,13.61799]
[1731298343334,13.61799,209.29,209.21,13.61799]
[1731298344233,13.61799,209.29,209.22,13.61799]
[1731298344818,13.61799,209.32,209.25,13.61799]
[1731298345035,13.61799,209.32,209.24,13.61799]
[1731298345232,13.61799,209.31,209.23,13.61799]
[1731298345533,13.61799,209.32,209.25,13.61799]
[1731298347239,13.61799,209.33,209.26,13.61799]
[1731298347639,13.61799,209.35,209.28,13.61799]
[1731298347934,13.61799,209.37,209.3,13.61799]
[1731298348331,13.61799,209.39,209.32,13.61799]
[1731298348534,13.61799,209.4,209.33,13.61799]
[1731298349042,13.61799,209.39,209.32,13.61799]
[1731298350433,13.61799,209.39,209.31,13.61799]
[1731298351143,13.61799,209.39,209.32,13.61799]
[1731298351750,13.61799,209.39,209.28,16.0799]
[1731298351751,13.61799,209.39,209.31,13.61799]
[1731298352139,13.61799,209.38,209.3,13.61799]
[1731298352443,13.61799,209.38,209.28,16.0799]
[1731298352444,13.61799,209.36,209.28,16.0799]
[1731298353446,13.61799,209.33,209.23,16.0677]
[1731298353635,13.61799,209.34,209.26,13.61799]
[1731298353963,13.61799,209.33,209.26,13.61799]
[1731298355129,13.61799,209.32,209.24,13.61799]
[1731298356126,13.61799,209.32,209.25,13.61799]
[1731298356756,13.61799,209.33,209.26,13.61799]
[1731298357044,13.61799,209.35,209.28,13.61799]
[1731298357239,13.61799,209.35,209.27,13.61799]
[1731298357631,13.61799,209.34,209.27,13.61799]
[1731298358737,13.61799,209.36,209.28,13.61799]
[1731298358938,13.61799,209.36,209.29,13.61799]
[1731298359142,18.39409,209.38,209.3,13.61799]
[1731298359329,13.61799,209.38,209.31,13.61799]
[1731298359636,13.61799,209.37,209.3,13.61799]
[1731298360644,18.39399,209.38,209.3,13.61799]
[1731298361050,43.876884,209.3,209.11,16.1761]
[1731298361347,13.61799,209.22,209.14,13.61799]
[1731298364026,13.61799,209.22,209.15,13.61799]
[1731298365238,13.61799,209.21,209.14,13.61799]
[1731298365636,13.61799,209.21,209.13,13.61799]
[1731298366737,13.61799,209.23,209.16,13.61799]
[1731298366939,13.61799,209.23,209.15,13.61799]
[1731298369556,13.61799,209.24,209.17,13.61799]
[1731298371651,13.61799,209.24,209.16,13.61799]
[1731298371836,13.61799,209.25,209.17,13.61799]
[1731298372036,13.61799,209.25,209.12,23.876884]
[1731298372037,13.61799,209.25,209.18,13.61799]
[1731298372452,13.61799,209.25,209.17,13.61799]
[1731298372747,21.3188,209.28,209.12,23.876884]
[1731298372748,13.61799,209.24,209.16,13.61799]
[1731298373137,13.61799,209.24,209.17,13.61799]
[1731298373340,13.61799,209.25,209.17,13.61799]
[1731298373839,13.61799,209.25,209.18,13.61799]
[1731298374356,13.61799,209.27,209.2,13.61799]
[1731298374765,13.61799,209.28,209.2,13.61799]
[1731298374940,13.61799,209.27,209.2,13.61799]
[1731298375639,13.61799,209.28,209.21,13.61799]
[1731298375845,13.61799,209.29,209.22,13.61799]
[1731298376363,26.096,209.33,209.21,13.61799]
[1731298376364,13.61799,209.28,209.21,13.61799]
[1731298377434,13.61799,209.29,209.21,13.61799]
[1731298378053,13.61799,209.28,209.2,13.61799]
[1731298378455,13.61799,209.26,209.19,13.61799]
[1731298379033,13.61799,209.27,209.19,13.61799]
[1731298379644,21.3188,209.33,209.19,13.61799]
[1731298379645,13.61799,209.26,209.19,13.61799]
[1731298379853,13.61799,209.25,209.18,13.61799]
[1731298380545,13.61799,209.24,209.16,13.61799]
[1731298380748,13.61799,209.22,209.15,13.61799]
[1731298381040,13.61799,209.22,209.11,16.1761]
[1731298381041,13.61799,209.26,209.19,13.61799]
[1731298381249,13.61799,209.27,209.19,13.61799]
[1731298381743,13.61799,209.26,209.19,13.61799]
[1731298381939,13.61799,209.27,209.2,13.61799]
[1731298382146,13.61799,209.28,209.2,13.61799]
[1731298383454,13.61799,209.26,209.19,13.61799]
[1731298384543,13.61799,209.25,209.17,13.61799]
[1731298384752,13.61799,209.23,209.16,13.61799]
[1731298384945,4.778,209.29,209.12,23.776884]
[1731298384946,13.61799,209.22,209.15,13.61799]
[1731298385352,13.61799,209.23,209.15,13.61799]
[1731298386459,13.61799,209.25,209.17,13.61799]
[1731298386833,13.61799,209.24,209.17,13.61799]
[1731298387447,13.61799,209.23,209.16,13.61799]
[1731298387856,13.61799,209.23,209.12,23.776884]
[1731298387857,13.61799,209.22,209.14,13.61799]
[1731298389337,13.61799,209.19,209.11,29.79409]
[1731298389539,13.61799,209.14,209.06,15.0373]
[1731298389853,13.61799,209.12,209.06,15.0373]
[1731298391255,13.61799,209.15,209.08,13.61799]
[1731298391484,13.61799,209.13,209.06,28.65529]
[1731298391662,13.61799,209.13,209.06,15.0373]
[1731298392345,13.61799,209.12,209.06,15.0373]
[1731298392664,13.61799,209.1,209.06,15.0373]
[1731298393859,13.61799,209.1,208.85,98.67]
[1731298393860,13.61799,209.08,208.99,15.0373]
[1731298394167,13.61799,209.06,208.99,15.0373]
[1731298394348,13.61799,209.07,208.99,28.65529]
[1731298394546,13.61799,209.07,209.0,13.61799]
[1731298395452,13.61799,209.11,209.03,13.61799]
[1731298395653,13.61799,209.1,209.03,13.61799]
[1731298396644,13.61799,209.11,209.03,13.61799]
[1731298397052,8.61799,209.11,209.03,13.61799]
[1731298397671,13.61799,209.07,208.99,15.0373]
[1731298397967,13.61799,209.04,208.99,15.0373]
[1731298398149,13.61799,209.05,208.99,15.0373]
[1731298399358,4.7828,209.09,208.99,15.0373]
[1731298399359,13.61799,209.06,208.99,15.0373]
[1731298400069,13.61799,209.08,209.01,13.61799]
[1731298400369,15.9136,209.15,208.99,15.0373]
[1731298400370,13.61799,209.11,209.04,13.61799]
[1731298400666,13.61799,209.11,209.03,13.61799]
[1731298401171,20.695,209.15,209.04,13.61799]
[1731298401172,13.61799,209.12,209.04,13.61799]
[1731298401463,13.61799,209.14,209.06,13.61799]
[1731298401667,13.61799,209.12,209.05,13.61799]
[1731298401970,13.61799,209.13,209.06,13.61799]
[1731298402551,13.61799,209.14,209.06,13.61799]
[1731298402764,13.61799,209.14,209.07,13.61799]
[1731298402952,13.61799,209.15,209.08,13.61799]
[1731298403877,13.61799,209.14,209.07,13.61799]
[1731298404972,13.61799,209.15,209.07,13.61799]
[1731298406250,13.61799,209.12,209.04,6.2138]
[1731298406468,13.61799,209.11,209.04,6.2138]
[1731298406953,13.61799,209.12,209.04,19.83179]
[1731298407154,13.61799,209.13,209.06,13.61799]
[1731298407558,13.61799,209.13,209.05,13.61799]
[1731298407769,13.61799,209.12,209.05,13.61799]
[1731298407965,13.61799,209.13,209.05,13.61799]
[1731298408166,13.61799,209.13,209.06,13.61799]
[1731298408766,13.61799,209.15,209.07,13.61799]
[1731298409076,13.61799,209.15,209.08,13.61799]
[1731298409576,13.61799,209.15,209.07,13.61799]
[1731298411359,13.61799,209.14,209.07,13.61799]
[1731298411766,13.61799,209.15,209.07,13.61799]
[1731298411959,13.61799,209.14,209.07,13.61799]
[1731298412356,13.61799,209.14,209.06,13.61799]
[1731298412855,28.94989,209.2,209.06,13.61799]
[1731298412856,13.61799,209.13,209.06,13.61799]
[1731298415568,13.61799,209.12,209.05,13.61799]
[1731298417371,13.61799,209.09,209.04,6.2138]
[1731298418081,13.61799,209.08,209.04,6.2138]
[1731298418383,13.61799,209.07,209.0,13.61799]
[1731298418679,13.61799,209.07,208.99,21.5201]
[1731298418680,13.61799,209.05,208.99,21.5201]
[1731298418870,13.61799,209.06,208.99,21.5201]
[1731298419071,13.61799,209.06,208.99,35.13809]
[1731298420071,13.61799,209.04,208.99,21.5201]
[1731298420467,13.61799,209.05,208.99,21.5201]
[1731298420669,13.61799,209.06,208.99,35.13809]
[1731298421388,13.61799,209.08,209.01,13.61799]
[1731298421886,13.61799,209.09,209.02,13.61799]
[1731298422194,13.61799,209.09,209.01,13.61799]
[1731298423285,13.61799,209.11,209.04,13.61799]
[1731298423492,13.61799,209.14,209.07,13.61799]
[1731298423783,13.61799,209.12,209.05,13.61799]
[1731298423988,13.61799,209.13,209.05,13.61799]
[1731298425668,13.61799,209.13,209.06,13.61799]
[1731298426885,4.7808,209.17,209.08,13.61799]
[1731298427075,13.61799,209.15,209.08,13.61799]
[1731298429387,13.61799,209.14,209.07,28.74709]
[1731298429593,13.61799,209.12,209.07,15.1291]
[1731298429883,13.61799,209.11,209.07,15.1291]
[1731298430062,4.7811,209.16,209.07,15.1291]
[1731298430063,13.61799,209.12,209.07,15.1291]
[1731298430867,13.61799,209.1,209.07,15.1291]
[1731298431068,13.61799,209.1,209.03,13.61799]
[1731298432275,13.61799,209.1,209.02,30.21719]
[1731298432786,13.61799,209.06,209.02,16.5992]
[1731298432991,13.61799,209.07,209.02,16.5992]
[1731298433877,13.61799,209.08,209.02,16.5992]
[1731298435190,4.782,209.12,209.03,13.61799]
[1731298435401,13.61799,209.11,209.03,13.61799]
[1731298435780,13.61799,209.1,209.03,13.61799]
[1731298435992,57.92224816,209.2,209.03,13.61799]
[1731298435993,13.61799,209.11,209.03,13.61799]
[1731298436193,13.61799,209.11,209.02,16.5992]
[1731298436194,13.61799,209.13,209.05,13.61799]
[1731298438189,13.61799,209.12,209.05,13.61799]
[1731298438688,13.61799,209.12,209.02,16.5992]
[1731298438889,13.61799,209.11,209.04,13.61799]
[1731298439388,13.61799,209.12,209.05,13.61799]
[1731298441399,13.61799,209.12,209.02,16.5992]
[1731298441400,13.61799,209.12,209.04,13.61799]
[1731298441578,13.61799,209.09,209.03,13.61799]
[1731298442401,13.61799,209.09,209.02,16.5992]
[1731298442977,13.61799,209.1,209.03,13.61799]
[1731298443378,13.61799,209.1,209.02,30.21719]
[1731298443694,13.61799,209.09,209.02,16.5992]
[1731298444023,13.61799,209.08,209.02,16.5992]
[1731298446588,13.61799,209.08,209.01,13.61799]
[1731298446801,13.61799,209.02,208.94,16.6375]
[1731298446985,13.61799,209.02,208.95,13.61799]
[1731298447689,13.61799,209.03,208.95,13.61799]
[1731298447890,13.61799,209.03,208.96,13.61799]
[1731298449281,13.61799,209.04,208.97,13.61799]
[1731298449685,13.61799,209.03,208.94,16.6375]
[1731298449888,13.61799,209.03,208.96,13.61799]
[1731298450786,13.61799,209.04,208.97,13.61799]
[1731298451587,13.61799,209.05,208.97,13.61799]
[1731298451783,13.61799,209.08,209.0,13.61799]
[1731298453704,13.61799,209.07,209.0,13.61799]
[1731298454404,13.61799,209.07,208.99,13.61799]
[1731298456507,13.61799,209.06,208.99,13.61799]
[1731298456997,13.61799,209.04,208.97,13.61799]
[1731298461313,13.61799,209.07,209.0,13.61799]
[1731298461608,13.61799,209.06,208.99,13.61799]
[1731298464014,13.61799,209.06,208.94,16.6375]
[1731298464015,13.61799,209.05,208.98,13.61799]
[1731298464698,13.61799,209.04,208.97,13.61799]
[1731298464891,13.61799,209.01,208.94,16.6375]
[1731298465094,13.61799,209.01,208.94,30.25549]
[1731298465295,13.61799,209.02,208.95,13.61799]
[1731298465494,13.61799,209.03,208.96,13.61799]
[1731298466814,13.61799,209.04,208.96,13.61799]
[1731298467811,4.7828,209.08,208.96,13.61799]
[1731298468013,13.61799,209.05,208.98,13.61799]
[1731298468211,13.61799,209.04,208.96,13.61799]
[1731298468908,13.61799,209.03,208.96,13.61799]
[1731298469098,13.61799,209.03,208.94,16.6375]
[1731298469099,28.560084,209.07,208.95,13.61799]
[1731298469297,13.61799,209.02,208.95,13.61799]
[1731298470710,13.61799,209.03,208.95,13.61799]
[1731298472215,13.61799,209.02,208.95,13.61799]
[1731298472917,4.784,209.03,208.94,16.6375]
[1731298473099,13.61799,209.01,208.94,30.25549]
[1731298474515,13.61799,209.0,208.94,16.6375]
[1731298475520,13.61799,209.01,208.94,16.6375]
[1731298476100,13.61799,209.0,208.94,16.6375]
[1731298479123,13.61799,208.99,208.94,16.6375]
[1731298479307,13.61799,208.96,208.89,29.64429]
[1731298479506,13.61799,208.97,208.9,13.61799]
[1731298480721,13.61799,208.98,208.91,13.61799]
[1731298480929,13.61799,208.98,208.9,13.61799]
[1731298481298,13.61799,208.97,208.9,13.61799]
[1731298481539,13.61799,208.96,208.89,29.64429]
[1731298482931,13.61799,208.97,208.9,13.61799]
[1731298484218,13.61799,208.95,208.89,16.0263]
[1731298485206,13.61799,208.94,208.86,13.61799]
[1731298486121,13.61799,208.94,208.87,13.61799]
[1731298486322,13.61799,208.95,208.88,13.61799]
[1731298486510,18.40359,208.96,208.89,13.61799]
[1731298486824,13.61799,208.94,208.87,13.61799]
[1731298487509,13.61799,208.94,208.86,13.61799]
[1731298487922,13.61799,208.94,208.87,13.61799]
[1731298489312,13.61799,208.94,208.86,13.61799]
[1731298489624,20.0,208.99,208.86,13.61799]
[1731298489625,13.61799,208.93,208.86,13.61799]
[1731298490327,13.61799,208.92,208.85,27.23598]
[1731298490708,13.61799,208.93,208.86,13.61799]
[1731298492817,13.61799,208.92,208.85,27.23598]
[1731298493024,13.61799,208.91,208.85,13.61799]
[1731298493216,13.61799,208.91,208.84,15.6927]
[1731298493422,13.61799,208.9,208.83,19.138954]
[1731298493617,13.61799,208.91,208.84,13.61799]
[1731298494013,13.61799,208.92,208.85,13.61799]
[1731298494729,13.61799,208.91,208.84,13.61799]
[1731298495713,13.61799,208.92,208.86,13.61799]
[1731298497706,13.61799,208.92,208.85,13.61799]
[1731298497911,13.61799,208.91,208.84,13.61799]
[1731298498521,13.61799,208.9,208.83,29.10449]
[1731298500033,13.61799,208.91,208.84,13.61799]
[1731298500527,13.61799,208.85,208.83,15.4865]
[1731298500731,13.61799,208.86,208.82,15.5189]
[1731298500917,13.61799,208.87,208.82,15.5189]
[1731298501308,13.61799,208.83,208.73,15.531]
[1731298501540,16.4525,208.89,208.73,15.531]
[1731298501541,13.61799,208.8,208.73,29.14899]
[1731298501738,13.61799,208.79,208.73,29.14899]
[1731298501919,13.61799,208.79,208.73,15.531]
[1731298502820,13.61799,208.8,208.73,29.14899]
[1731298503323,13.61799,208.79,208.73,29.14899]
[1731298503520,4.7874,208.88,208.73,29.14899]
[1731298503521,13.61799,208.78,208.73,15.531]
[1731298503725,13.61799,208.79,208.73,15.531]
[1731298503930,13.61799,208.8,208.73,29.14899]
[1731298504512,13.61799,208.81,208.74,13.61799]
[1731298506136,13.61799,208.8,208.73,29.14899]
[1731298507622,13.61799,208.79,208.73,15.531]
[1731298508022,13.61799,208.8,208.73,29.14899]
[1731298509526,13.61799,208.79,208.73,15.531]
[1731298510124,13.61799,208.8,208.73,29.14899]
[1731298510341,13.61799,208.8,208.73,15.531]
[1731298510537,13.61799,208.81,208.74,13.61799]
[1731298511739,23.776884,208.86,208.76,13.61799]
[1731298511932,21.42728192,208.89,208.73,15.531]
[1731298511933,13.61799,208.85,208.79,13.61799]
[1731298512138,13.61799,208.86,208.79,13.61799]
[1731298512739,21.2398,208.89,208.79,13.61799]
[1731298512740,13.61799,208.85,208.79,13.61799]
[1731298513128,13.61799,208.85,208.78,13.61799]
[1731298513947,13.61799,208.86,208.79,13.61799]
[1731298514831,13.61799,208.85,208.78,13.61799]
[1731298515241,13.61799,208.87,208.8,13.61799]
[1731298515540,15.0316,208.94,208.74,21.4594]
[1731298515541,13.61799,208.84,208.74,21.4594]
[1731298515743,13.61799,208.84,208.77,13.61799]
[1731298516847,13.61799,208.9,208.75,13.61799]
[1731298516848,13.61799,208.82,208.75,13.61799]
[1731298517049,13.61799,208.81,208.74,35.07739]
[1731298518035,13.61799,208.75,208.68,13.61799]
[1731298518351,13.61799,208.77,208.7,19.150961]
[1731298518727,13.61799,208.77,208.7,32.768951]
[1731298518928,13.61799,208.78,208.71,13.61799]
[1731298519648,13.61799,208.77,208.7,32.768951]
[1731298519844,13.61799,208.78,208.71,13.61799]
[1731298521948,13.61799,208.76,208.7,19.150961]
[1731298522246,13.61799,208.76,208.64,15.3614]
[1731298522247,13.61799,208.76,208.68,13.61799]
[1731298522445,13.61799,208.76,208.69,13.61799]
[1731298524032,13.61799,208.77,208.7,13.61799]
[1731298524548,13.61799,208.76,208.67,15.6473]
[1731298524736,13.61799,208.72,208.65,13.61799]
[1731298524934,13.61799,208.73,208.66,13.61799]
[1731298525260,13.61799,208.67,208.55,20.64754071]
[1731298525437,13.61799,208.64,208.55,15.6674]
[1731298525751,13.61799,208.65,208.57,13.61799]
[1731298526251,13.61799,208.58,208.56,13.61799]
[1731298526434,13.61799,208.59,208.51,13.61799]
[1731298526756,13.61799,208.6,208.52,13.61799]
[1731298527329,13.61799,208.58,208.45,16.0142]
[1731298527628,13.61799,208.59,208.52,13.61799]
[1731298527844,13.61799,208.6,208.53,13.61799]
[1731298528356,13.61799,208.63,208.56,13.61799]